[Event "January 9 Early 2024"]
[Site "https://www.chess.com"]
[Date "2024.01.11"]
[Round "5"]
[White "Mrudul Dehankar"]
[Black "Soraas, Torben"]
[Result "0-1"]
[Board "83"]
[TimeControl "180+1"]
[WhiteFideId "25096990"]
[BlackFideId "1503529"]
[WhiteElo "2400"]
[BlackElo "2283"]
[WhiteTeam "IND"]
[BlackTeam "NOR"]
[WhiteClock "0:00:01"]
[BlackClock "0:00:49"]

1. e4 {[%clk 0:02:07]}  e6 {[%clk 0:02:59]} 2. Nf3 {[%clk 0:02:06]}  d5 {[%clk 0:03:00]} 3. Nc3 {[%clk 0:02:05]}  dxe4 {[%clk 0:03:01]} 4. Nxe4 {[%clk 0:02:05]}  Nd7 {[%clk 0:03:01]} 5. d4 {[%clk 0:02:05]}  Ngf6 {[%clk 0:03:02]} 6. Ng3 {[%clk 0:02:05]}  Bd6 {[%clk 0:03:02]} 7. Bd3 {[%clk 0:02:05]}  b6 {[%clk 0:03:02]} 8. O-O {[%clk 0:02:01]}  Bb7 {[%clk 0:03:03]} 9. Re1 {[%clk 0:02:01]}  O-O {[%clk 0:03:03]} 10. Qe2 {[%clk 0:01:56]}  c5 {[%clk 0:03:03]} 11. c3 {[%clk 0:01:56]}  Qc7 {[%clk 0:03:03]} 12. Ne5 {[%clk 0:01:52]}  Rad8 {[%clk 0:02:59]} 13. Bg5 {[%clk 0:01:43]}  Bxe5 {[%clk 0:02:34]} 14. dxe5 {[%clk 0:01:34]}  Nxe5 {[%clk 0:02:34]} 15. Bxf6 {[%clk 0:01:33]}  gxf6 {[%clk 0:01:54]} 16. Be4 {[%clk 0:00:22]}  Ng6 {[%clk 0:01:36]} 17. Nh5 {[%clk 0:00:15]}  f5 {[%clk 0:01:19]} 18. Bxb7 {[%clk 0:00:10]}  Qxb7 {[%clk 0:01:20]} 19. Qe3 {[%clk 0:00:06]}  Kh8 {[%clk 0:00:57]} 20. Qh6 {[%clk 0:00:02]}  Rg8 {[%clk 0:00:57]} 21. Nf6 {[%clk 0:00:01]}  Rg7 {[%clk 0:00:53]} 22. Nh5 {[%clk 0:00:01]}  Rdg8 {[%clk 0:00:49]} 0-1

[Event "January 9 Early 2024"]
[Site "https://www.chess.com"]
[Date "2024.01.11"]
[Round "5"]
[White "Tarhan, Adar"]
[Black "Foisor, Sabina-Francesca"]
[Result "1-0"]
[Board "84"]
[TimeControl "180+1"]
[WhiteFideId "34544712"]
[BlackFideId "1212915"]
[WhiteElo "2685"]
[BlackElo "2458"]
[WhiteTeam "TUR"]
[BlackTeam "USA"]
[WhiteClock "0:01:18"]
[BlackClock "0:00:03"]

1. e4 {[%clk 0:02:57]}  c6 {[%clk 0:02:59]} 2. d4 {[%clk 0:02:57]}  d5 {[%clk 0:03:00]} 3. Nc3 {[%clk 0:02:57]}  g6 {[%clk 0:02:59]} 4. e5 {[%clk 0:02:49]}  Bg7 {[%clk 0:02:59]} 5. f4 {[%clk 0:02:49]}  Nh6 {[%clk 0:02:57]} 6. Nf3 {[%clk 0:02:49]}  Bg4 {[%clk 0:02:57]} 7. Bd3 {[%clk 0:02:48]}  e6 {[%clk 0:02:53]} 8. Be3 {[%clk 0:02:46]}  Nf5 {[%clk 0:02:53]} 9. Bf2 {[%clk 0:02:46]}  h5 {[%clk 0:02:51]} 10. h3 {[%clk 0:02:46]}  Bxf3 {[%clk 0:02:51]} 11. Qxf3 {[%clk 0:02:46]}  h4 {[%clk 0:02:52]} 12. O-O-O {[%clk 0:02:45]}  Na6 {[%clk 0:02:51]} 13. a3 {[%clk 0:02:33]}  Qa5 {[%clk 0:02:39]} 14. Kb1 {[%clk 0:02:29]}  b5 {[%clk 0:02:26]} 15. Na2 {[%clk 0:02:29]}  Qb6 {[%clk 0:02:15]} 16. c3 {[%clk 0:02:24]}  Nc7 {[%clk 0:02:12]} 17. Kc2 {[%clk 0:02:15]}  a5 {[%clk 0:02:12]} 18. Ra1 {[%clk 0:02:14]}  Qb7 {[%clk 0:01:36]} 19. Kd2 {[%clk 0:02:07]}  Rc8 {[%clk 0:01:17]} 20. Nc1 {[%clk 0:02:05]}  Na8 {[%clk 0:01:18]} 21. Nb3 {[%clk 0:02:05]}  Qa7 {[%clk 0:01:10]} 22. Nc5 {[%clk 0:02:03]}  Nb6 {[%clk 0:01:05]} 23. b4 {[%clk 0:02:02]}  a4 {[%clk 0:01:05]} 24. Rag1 {[%clk 0:02:00]}  Nd7 {[%clk 0:00:53]} 25. g4 {[%clk 0:01:53]}  hxg3 {[%clk 0:00:52]} 26. Bxg3 {[%clk 0:01:54]}  Nxg3 {[%clk 0:00:48]} 27. Rxg3 {[%clk 0:01:53]}  Nxc5 {[%clk 0:00:49]} 28. dxc5 {[%clk 0:01:43]}  Qe7 {[%clk 0:00:42]} 29. Rg4 {[%clk 0:01:39]}  Rd8 {[%clk 0:00:23]} 30. h4 {[%clk 0:01:39]}  Kd7 {[%clk 0:00:21]} 31. h5 {[%clk 0:01:39]}  Rh6 {[%clk 0:00:17]} 32. hxg6 {[%clk 0:01:38]}  fxg6 {[%clk 0:00:13]} 33. Rxh6 {[%clk 0:01:31]}  Bxh6 {[%clk 0:00:13]} 34. Rxg6 {[%clk 0:01:31]}  Rh8 {[%clk 0:00:11]} 35. Qg4 {[%clk 0:01:25]}  Qf7 {[%clk 0:00:11]} 36. Rf6 {[%clk 0:01:23]}  Qg7 {[%clk 0:00:10]} 37. Qxe6+ {[%clk 0:01:23]}  Kd8 {[%clk 0:00:10]} 38. Qd6+ {[%clk 0:01:20]}  Kc8 {[%clk 0:00:03]} 39. Bf5+ {[%clk 0:01:18]}  Kb7 {[%clk 0:00:03]} 40. Qxc6+ {[%clk 0:01:18]} 1-0

[Event "January 9 Early 2024"]
[Site "https://www.chess.com"]
[Date "2024.01.11"]
[Round "5"]
[White "Santos Flores, Alberto"]
[Black "Novozhilov, Semen"]
[Result "0-1"]
[Board "85"]
[TimeControl "180+1"]
[WhiteFideId "3601234"]
[BlackFideId "24289167"]
[WhiteElo "2503"]
[BlackElo "2701"]
[WhiteTeam "ECU"]
[BlackTeam "RUS"]
[WhiteClock "0:00:21"]
[BlackClock "0:00:32"]

1. e4 {[%clk 0:03:00]}  c5 {[%clk 0:02:59]} 2. Nf3 {[%clk 0:03:00]}  Nc6 {[%clk 0:02:59]} 3. Nc3 {[%clk 0:03:00]}  d6 {[%clk 0:02:59]} 4. d4 {[%clk 0:02:59]}  cxd4 {[%clk 0:02:58]} 5. Nxd4 {[%clk 0:03:00]}  Nf6 {[%clk 0:02:58]} 6. Bg5 {[%clk 0:02:57]}  e6 {[%clk 0:02:58]} 7. Bb5 {[%clk 0:02:56]}  Bd7 {[%clk 0:02:56]} 8. Bxc6 {[%clk 0:02:55]}  bxc6 {[%clk 0:02:56]} 9. Qf3 {[%clk 0:02:55]}  e5 {[%clk 0:02:47]} 10. Nf5 {[%clk 0:02:54]}  h6 {[%clk 0:02:24]} 11. Bh4 {[%clk 0:02:41]}  g5 {[%clk 0:02:21]} 12. Bg3 {[%clk 0:02:41]}  g4 {[%clk 0:02:21]} 13. Qd3 {[%clk 0:02:35]}  Bxf5 {[%clk 0:02:17]} 14. exf5 {[%clk 0:02:36]}  h5 {[%clk 0:02:06]} 15. O-O-O {[%clk 0:02:35]}  h4 {[%clk 0:01:55]} 16. Bxe5 {[%clk 0:02:12]}  dxe5 {[%clk 0:01:56]} 17. Qc4 {[%clk 0:02:12]}  Qb6 {[%clk 0:01:22]} 18. Rhe1 {[%clk 0:02:09]}  Be7 {[%clk 0:01:18]} 19. Rxe5 {[%clk 0:02:07]}  Kf8 {[%clk 0:01:18]} 20. Qe2 {[%clk 0:01:37]}  Re8 {[%clk 0:01:10]} 21. Ne4 {[%clk 0:01:25]}  c5 {[%clk 0:00:41]} 22. Kb1 {[%clk 0:00:36]}  Kg7 {[%clk 0:00:32]} 23. Nxf6 {[%clk 0:00:36]}  Bxf6 {[%clk 0:00:33]} 24. Qxg4+ {[%clk 0:00:36]}  Kh6 {[%clk 0:00:33]} 25. Qf4+ {[%clk 0:00:29]}  Kh7 {[%clk 0:00:33]} 26. Red5 {[%clk 0:00:21]}  Qxb2# {[%clk 0:00:32]} 0-1

[Event "January 9 Early 2024"]
[Site "https://www.chess.com"]
[Date "2024.01.11"]
[Round "5"]
[White "Hrebenshchykova, Yelyzaveta"]
[Black "Principe, Gerson"]
[Result "1/2-1/2"]
[Board "87"]
[TimeControl "180+1"]
[WhiteFideId "14159899"]
[BlackFideId "3804550"]
[WhiteElo "2492"]
[BlackElo "2644"]
[WhiteTeam "UKR"]
[BlackTeam "PER"]
[WhiteClock "0:00:25"]
[BlackClock "0:00:30"]

1. e4 {[%clk 0:03:00]}  c6 {[%clk 0:02:56]} 2. d4 {[%clk 0:02:59]}  d5 {[%clk 0:02:56]} 3. e5 {[%clk 0:02:59]}  Bf5 {[%clk 0:02:55]} 4. h4 {[%clk 0:02:59]}  h5 {[%clk 0:02:37]} 5. Bd3 {[%clk 0:02:57]}  Bxd3 {[%clk 0:02:36]} 6. Qxd3 {[%clk 0:02:58]}  e6 {[%clk 0:02:37]} 7. Bg5 {[%clk 0:02:58]}  Be7 {[%clk 0:02:36]} 8. Nf3 {[%clk 0:02:52]}  Nd7 {[%clk 0:02:36]} 9. O-O {[%clk 0:02:33]}  Nh6 {[%clk 0:02:33]} 10. Bxe7 {[%clk 0:02:28]}  Qxe7 {[%clk 0:02:32]} 11. Nbd2 {[%clk 0:02:25]}  Nf5 {[%clk 0:02:32]} 12. c4 {[%clk 0:02:23]}  Nxh4 {[%clk 0:02:29]} 13. cxd5 {[%clk 0:02:17]}  Nxf3+ {[%clk 0:02:26]} 14. Nxf3 {[%clk 0:02:17]}  cxd5 {[%clk 0:02:21]} 15. Rac1 {[%clk 0:02:17]}  O-O {[%clk 0:01:57]} 16. Qb5 {[%clk 0:02:15]}  Nb6 {[%clk 0:01:56]} 17. a4 {[%clk 0:02:11]}  Rac8 {[%clk 0:01:40]} 18. a5 {[%clk 0:02:09]}  Nc4 {[%clk 0:01:28]} 19. Rc3 {[%clk 0:02:05]}  a6 {[%clk 0:01:25]} 20. Qa4 {[%clk 0:01:56]}  Nxb2 {[%clk 0:01:22]} 21. Qb3 {[%clk 0:01:50]}  Nc4 {[%clk 0:01:16]} 22. Ra1 {[%clk 0:01:34]}  Rc6 {[%clk 0:01:13]} 23. Ne1 {[%clk 0:01:22]}  Rfc8 {[%clk 0:01:12]} 24. Rc2 {[%clk 0:01:11]}  g6 {[%clk 0:01:08]} 25. Re2 {[%clk 0:00:51]}  Qc7 {[%clk 0:01:05]} 26. Qb4 {[%clk 0:00:45]}  Qd7 {[%clk 0:01:02]} 27. Nd3 {[%clk 0:00:44]}  R6c7 {[%clk 0:00:53]} 28. Nc5 {[%clk 0:00:44]}  Qe7 {[%clk 0:00:50]} 29. Rc1 {[%clk 0:00:30]}  Qg5 {[%clk 0:00:37]} 30. Rd1 {[%clk 0:00:29]}  Qe7 {[%clk 0:00:34]} 31. Rc1 {[%clk 0:00:27]}  Qe8 {[%clk 0:00:31]} 32. Rb1 {[%clk 0:00:25]}  Qe7 {[%clk 0:00:30]} 33. Rc1 {[%clk 0:00:25]} 1/2-1/2

[Event "January 9 Early 2024"]
[Site "https://www.chess.com"]
[Date "2024.01.11"]
[Round "5"]
[White "Makaraci, Tunahan"]
[Black "Eilenberg, Jonas"]
[Result "1-0"]
[Board "89"]
[TimeControl "180+1"]
[WhiteFideId "6356559"]
[BlackFideId "16204271"]
[WhiteElo "2555"]
[BlackElo "2383"]
[WhiteTeam "TUR"]
[BlackTeam "GER"]
[WhiteClock "0:00:32"]
[BlackClock "0:00:44"]

1. e4 {[%clk 0:03:00]}  c5 {[%clk 0:03:00]} 2. c3 {[%clk 0:02:59]}  Nf6 {[%clk 0:02:59]} 3. e5 {[%clk 0:03:00]}  Nd5 {[%clk 0:03:00]} 4. Nf3 {[%clk 0:03:00]}  Nc6 {[%clk 0:03:00]} 5. Bc4 {[%clk 0:03:00]}  Nb6 {[%clk 0:03:00]} 6. Bb3 {[%clk 0:03:01]}  d5 {[%clk 0:03:00]} 7. exd6 {[%clk 0:03:01]}  Qxd6 {[%clk 0:03:01]} 8. O-O {[%clk 0:03:01]}  Be6 {[%clk 0:02:56]} 9. Bxe6 {[%clk 0:03:01]}  Qxe6 {[%clk 0:02:56]} 10. a4 {[%clk 0:02:59]}  Qd7 {[%clk 0:02:50]} 11. a5 {[%clk 0:02:58]}  Nd5 {[%clk 0:02:51]} 12. a6 {[%clk 0:02:58]}  b6 {[%clk 0:02:51]} 13. d4 {[%clk 0:02:58]}  cxd4 {[%clk 0:02:52]} 14. Nxd4 {[%clk 0:02:59]}  e6 {[%clk 0:02:52]} 15. Nxc6 {[%clk 0:02:58]}  Qxc6 {[%clk 0:02:53]} 16. Qe2 {[%clk 0:02:58]}  Bc5 {[%clk 0:02:48]} 17. c4 {[%clk 0:02:52]}  Nf6 {[%clk 0:02:44]} 18. Nc3 {[%clk 0:02:51]}  O-O {[%clk 0:02:43]} 19. Bg5 {[%clk 0:02:45]}  Rfd8 {[%clk 0:02:20]} 20. Bxf6 {[%clk 0:02:31]}  gxf6 {[%clk 0:02:21]} 21. Nb5 {[%clk 0:02:31]}  f5 {[%clk 0:01:58]} 22. Rad1 {[%clk 0:02:28]}  Kg7 {[%clk 0:01:53]} 23. Rxd8 {[%clk 0:02:17]}  Rxd8 {[%clk 0:01:54]} 24. Rd1 {[%clk 0:02:08]}  Rxd1+ {[%clk 0:01:43]} 25. Qxd1 {[%clk 0:02:08]}  Qc8 {[%clk 0:01:44]} 26. Qa1 {[%clk 0:01:59]}  Be7 {[%clk 0:01:38]} 27. Nxa7 {[%clk 0:01:53]}  Qa8 {[%clk 0:01:34]} 28. Nb5 {[%clk 0:01:52]}  Bf6 {[%clk 0:01:31]} 29. a7 {[%clk 0:01:51]}  Be5 {[%clk 0:01:31]} 30. g3 {[%clk 0:01:48]}  h5 {[%clk 0:01:29]} 31. f4 {[%clk 0:01:22]}  Bf6 {[%clk 0:01:23]} 32. Qd1 {[%clk 0:00:52]}  Kg6 {[%clk 0:01:18]} 33. Kf2 {[%clk 0:00:48]}  Bxb2 {[%clk 0:01:10]} 34. Qf3 {[%clk 0:00:45]}  Bd4+ {[%clk 0:00:50]} 35. Kg2 {[%clk 0:00:39]}  Qc8 {[%clk 0:00:41]} 36. a8=Q {[%clk 0:00:38]}  Qxc4 {[%clk 0:00:41]} 37. Qg8+ {[%clk 0:00:33]}  Bg7 {[%clk 0:00:42]} 38. Qxf7+ {[%clk 0:00:31]}  Kxf7 {[%clk 0:00:43]} 39. Nd6+ {[%clk 0:00:32]}  Kg8 {[%clk 0:00:44]} 40. Nxc4 {[%clk 0:00:32]} 1-0

[Event "January 9 Early 2024"]
[Site "https://www.chess.com"]
[Date "2024.01.11"]
[Round "5"]
[White "Rosenberg, Evan S"]
[Black "Mendez Fortes, Eduardo Jesus"]
[Result "1-0"]
[Board "90"]
[TimeControl "180+1"]
[WhiteFideId "2019299"]
[BlackFideId "3502376"]
[WhiteElo "2396"]
[BlackElo "2536"]
[WhiteTeam "USA"]
[BlackTeam "CUB"]
[WhiteClock "0:00:42"]
[BlackClock "0:00:30"]

1. d4 {[%clk 0:03:00]}  Nf6 {[%clk 0:02:59]} 2. Nf3 {[%clk 0:02:59]}  d5 {[%clk 0:02:59]} 3. c3 {[%clk 0:02:56]}  c5 {[%clk 0:02:58]} 4. dxc5 {[%clk 0:02:56]}  e6 {[%clk 0:02:58]} 5. Be3 {[%clk 0:02:57]}  a5 {[%clk 0:02:52]} 6. c4 {[%clk 0:02:57]}  Nbd7 {[%clk 0:02:49]} 7. Nc3 {[%clk 0:02:52]}  dxc4 {[%clk 0:02:43]} 8. g3 {[%clk 0:02:49]}  Be7 {[%clk 0:02:29]} 9. Bg2 {[%clk 0:02:47]}  O-O {[%clk 0:02:29]} 10. O-O {[%clk 0:02:35]}  Bxc5 {[%clk 0:02:19]} 11. Bxc5 {[%clk 0:02:33]}  Nxc5 {[%clk 0:02:20]} 12. Ne5 {[%clk 0:02:34]}  Rb8 {[%clk 0:02:09]} 13. Nxc4 {[%clk 0:02:31]}  Qc7 {[%clk 0:02:06]} 14. Qd6 {[%clk 0:02:29]}  Qxd6 {[%clk 0:02:02]} 15. Nxd6 {[%clk 0:02:29]}  b6 {[%clk 0:02:02]} 16. Rac1 {[%clk 0:02:21]}  Ba6 {[%clk 0:02:02]} 17. Rfd1 {[%clk 0:02:21]}  e5 {[%clk 0:01:49]} 18. Bf1 {[%clk 0:02:11]}  Rfd8 {[%clk 0:01:42]} 19. f3 {[%clk 0:01:56]}  g6 {[%clk 0:01:41]} 20. e4 {[%clk 0:01:56]}  Bxf1 {[%clk 0:01:40]} 21. Kxf1 {[%clk 0:01:56]}  Ne6 {[%clk 0:01:41]} 22. Ncb5 {[%clk 0:01:54]}  Nd7 {[%clk 0:01:32]} 23. Ke2 {[%clk 0:01:35]}  Ndc5 {[%clk 0:01:27]} 24. Ke3 {[%clk 0:01:35]}  Rd7 {[%clk 0:01:23]} 25. Nc4 {[%clk 0:01:30]}  Rdb7 {[%clk 0:01:12]} 26. Nxe5 {[%clk 0:01:28]}  f5 {[%clk 0:01:12]} 27. exf5 {[%clk 0:01:24]}  gxf5 {[%clk 0:01:13]} 28. Rd6 {[%clk 0:01:21]}  Re8 {[%clk 0:01:11]} 29. f4 {[%clk 0:01:18]}  Ne4 {[%clk 0:01:11]} 30. Rcc6 {[%clk 0:01:13]}  Rbe7 {[%clk 0:00:45]} 31. Rxb6 {[%clk 0:00:59]}  Nxd6 {[%clk 0:00:44]} 32. Nxd6 {[%clk 0:00:58]}  Rd8 {[%clk 0:00:37]} 33. Nxf5 {[%clk 0:00:57]}  Ree8 {[%clk 0:00:35]} 34. Nd6 {[%clk 0:00:48]}  Re7 {[%clk 0:00:35]} 35. Nc6 {[%clk 0:00:41]}  Rxd6 {[%clk 0:00:30]} 36. Nxe7+ {[%clk 0:00:41]}  Kf7 {[%clk 0:00:29]} 37. Rxd6 {[%clk 0:00:42]}  Kxe7 {[%clk 0:00:29]} 38. Rxe6+ {[%clk 0:00:42]}  Kxe6 {[%clk 0:00:30]} 39. b3 {[%clk 0:00:42]} 1-0

[Event "January 9 Early 2024"]
[Site "https://www.chess.com"]
[Date "2024.01.11"]
[Round "5"]
[White "Terziev, Dimo"]
[Black "Rees, Ioan"]
[Result "0-1"]
[Board "93"]
[TimeControl "180+1"]
[WhiteFideId "2925397"]
[BlackFideId "1801236"]
[WhiteElo "2156"]
[BlackElo "2395"]
[WhiteTeam "BUL"]
[BlackTeam "WLS"]
[WhiteClock "0:00:02"]
[BlackClock "0:01:18"]

1. e4 {[%clk 0:03:00]}  c6 {[%clk 0:02:55]} 2. d4 {[%clk 0:02:59]}  d5 {[%clk 0:02:56]} 3. exd5 {[%clk 0:03:00]}  cxd5 {[%clk 0:02:57]} 4. Bd3 {[%clk 0:02:58]}  Nc6 {[%clk 0:02:57]} 5. c3 {[%clk 0:02:57]}  Qc7 {[%clk 0:02:57]} 6. Ne2 {[%clk 0:02:56]}  e5 {[%clk 0:02:55]} 7. dxe5 {[%clk 0:02:53]}  Nxe5 {[%clk 0:02:56]} 8. Bf4 {[%clk 0:02:51]}  Bd6 {[%clk 0:02:49]} 9. Bg3 {[%clk 0:02:37]}  Nf6 {[%clk 0:02:43]} 10. O-O {[%clk 0:02:36]}  O-O {[%clk 0:02:37]} 11. Nd4 {[%clk 0:02:28]}  a6 {[%clk 0:02:33]} 12. Nf5 {[%clk 0:02:09]}  Bxf5 {[%clk 0:02:28]} 13. Bxf5 {[%clk 0:02:08]}  Ne4 {[%clk 0:02:25]} 14. Nd2 {[%clk 0:01:39]}  Nxg3 {[%clk 0:02:20]} 15. hxg3 {[%clk 0:01:38]}  Rad8 {[%clk 0:02:11]} 16. Nf3 {[%clk 0:01:33]}  g6 {[%clk 0:02:08]} 17. Bd3 {[%clk 0:01:22]}  Bc5 {[%clk 0:02:00]} 18. Re1 {[%clk 0:00:59]}  Nxd3 {[%clk 0:01:58]} 19. Qxd3 {[%clk 0:00:58]}  Qxg3 {[%clk 0:01:58]} 20. Re2 {[%clk 0:00:44]}  Rfe8 {[%clk 0:01:46]} 21. Rae1 {[%clk 0:00:38]}  Rxe2 {[%clk 0:01:38]} 22. Rxe2 {[%clk 0:00:37]}  Qf4 {[%clk 0:01:35]} 23. Nd4 {[%clk 0:00:21]}  Bxd4 {[%clk 0:01:28]} 24. Qxd4 {[%clk 0:00:18]}  Qxd4 {[%clk 0:01:28]} 25. cxd4 {[%clk 0:00:18]}  Kf8 {[%clk 0:01:28]} 26. Rc2 {[%clk 0:00:18]}  Ke7 {[%clk 0:01:26]} 27. Rc7+ {[%clk 0:00:17]}  Rd7 {[%clk 0:01:26]} 28. Rc8 {[%clk 0:00:17]}  Kd6 {[%clk 0:01:26]} 29. f3 {[%clk 0:00:14]}  h5 {[%clk 0:01:26]} 30. Kf2 {[%clk 0:00:14]}  Rc7 {[%clk 0:01:26]} 31. Rd8+ {[%clk 0:00:13]}  Ke7 {[%clk 0:01:24]} 32. Rxd5 {[%clk 0:00:12]}  Rc2+ {[%clk 0:01:24]} 33. Kg3 {[%clk 0:00:10]}  Rxb2 {[%clk 0:01:24]} 34. a4 {[%clk 0:00:09]}  b5 {[%clk 0:01:24]} 35. axb5 {[%clk 0:00:08]}  axb5 {[%clk 0:01:24]} 36. Rc5 {[%clk 0:00:08]}  b4 {[%clk 0:01:24]} 37. Rb5 {[%clk 0:00:07]}  b3 {[%clk 0:01:24]} 38. d5 {[%clk 0:00:06]}  Rb1 {[%clk 0:01:22]} 39. Kh2 {[%clk 0:00:02]}  b2 {[%clk 0:01:19]} 40. Kg3 {[%clk 0:00:02]}  Kd6 {[%clk 0:01:19]} 41. Kh2 {[%clk 0:00:02]}  h4 {[%clk 0:01:18]} 0-1

[Event "January 9 Early 2024"]
[Site "https://www.chess.com"]
[Date "2024.01.11"]
[Round "5"]
[White "Kleiman, Jake"]
[Black "Guerrero Olmos, Sergio"]
[Result "1-0"]
[Board "94"]
[TimeControl "180+1"]
[WhiteFideId "2020041"]
[BlackFideId "2257238"]
[WhiteElo "2637"]
[BlackElo "2456"]
[WhiteTeam "USA"]
[BlackTeam "ESP"]
[WhiteClock "0:00:59"]
[BlackClock "0:00:23"]

1. e4 {[%clk 0:03:00]}  e5 {[%clk 0:03:00]} 2. Nf3 {[%clk 0:03:00]}  d6 {[%clk 0:03:01]} 3. Bc4 {[%clk 0:03:01]}  Nd7 {[%clk 0:02:54]} 4. d4 {[%clk 0:03:01]}  c6 {[%clk 0:02:52]} 5. O-O {[%clk 0:02:56]}  Be7 {[%clk 0:02:50]} 6. a4 {[%clk 0:02:55]}  Ngf6 {[%clk 0:02:50]} 7. Nc3 {[%clk 0:02:55]}  O-O {[%clk 0:02:50]} 8. Re1 {[%clk 0:02:55]}  Qc7 {[%clk 0:02:50]} 9. h3 {[%clk 0:02:54]}  h6 {[%clk 0:02:47]} 10. Ba2 {[%clk 0:02:53]}  Re8 {[%clk 0:02:45]} 11. dxe5 {[%clk 0:02:52]}  dxe5 {[%clk 0:02:44]} 12. Nh4 {[%clk 0:02:51]}  Nc5 {[%clk 0:02:34]} 13. Nf5 {[%clk 0:02:45]}  Bf8 {[%clk 0:02:33]} 14. Qf3 {[%clk 0:02:43]}  Be6 {[%clk 0:02:30]} 15. Nxh6+ {[%clk 0:02:27]}  gxh6 {[%clk 0:02:28]} 16. Qxf6 {[%clk 0:02:26]}  Bxa2 {[%clk 0:02:27]} 17. Rxa2 {[%clk 0:02:26]}  Re6 {[%clk 0:02:26]} 18. Qf5 {[%clk 0:02:19]}  Rd8 {[%clk 0:02:15]} 19. Be3 {[%clk 0:02:19]}  Rg6 {[%clk 0:02:07]} 20. Raa1 {[%clk 0:02:10]}  Ne6 {[%clk 0:02:04]} 21. Ne2 {[%clk 0:02:04]}  Bg7 {[%clk 0:01:35]} 22. c3 {[%clk 0:02:02]}  Rd3 {[%clk 0:01:26]} 23. Rad1 {[%clk 0:01:43]}  Qd7 {[%clk 0:01:26]} 24. Rxd3 {[%clk 0:01:42]}  Qxd3 {[%clk 0:01:27]} 25. Ng3 {[%clk 0:01:43]}  Qc2 {[%clk 0:01:16]} 26. Re2 {[%clk 0:01:39]}  Qxa4 {[%clk 0:01:15]} 27. Qf3 {[%clk 0:01:38]}  Nf4 {[%clk 0:01:10]} 28. Rd2 {[%clk 0:01:23]}  Ne6 {[%clk 0:00:42]} 29. Nf5 {[%clk 0:01:16]}  Bf8 {[%clk 0:00:40]} 30. Kh2 {[%clk 0:01:12]}  Bc5 {[%clk 0:00:35]} 31. Bxc5 {[%clk 0:01:10]}  Nxc5 {[%clk 0:00:28]} 32. Ne7+ {[%clk 0:01:10]}  Kg7 {[%clk 0:00:28]} 33. Nxg6 {[%clk 0:01:10]}  Nxe4 {[%clk 0:00:25]} 34. Nxe5 {[%clk 0:00:59]}  Nxd2 {[%clk 0:00:23]} 35. Qxf7+ {[%clk 0:00:59]} 1-0

[Event "January 9 Early 2024"]
[Site "https://www.chess.com"]
[Date "2024.01.11"]
[Round "5"]
[White "Bueno, Alfeu Junior Varela"]
[Black "Shubenkova, Veronika"]
[Result "0-1"]
[Board "96"]
[TimeControl "180+1"]
[WhiteFideId "2108879"]
[BlackFideId "44124040"]
[WhiteElo "2409"]
[BlackElo "2583"]
[WhiteTeam "BRA"]
[BlackTeam "RUS"]
[WhiteClock "0:00:01"]
[BlackClock "0:01:03"]

1. e4 {[%clk 0:03:00]}  e6 {[%clk 0:02:59]} 2. d4 {[%clk 0:03:00]}  d5 {[%clk 0:02:59]} 3. Nd2 {[%clk 0:03:00]}  Nf6 {[%clk 0:02:59]} 4. Bd3 {[%clk 0:02:59]}  Be7 {[%clk 0:02:59]} 5. e5 {[%clk 0:02:57]}  Nfd7 {[%clk 0:02:59]} 6. f4 {[%clk 0:02:57]}  c5 {[%clk 0:02:59]} 7. c3 {[%clk 0:02:57]}  Nc6 {[%clk 0:02:59]} 8. Ne2 {[%clk 0:02:57]}  f6 {[%clk 0:02:59]} 9. O-O {[%clk 0:02:47]}  Qb6 {[%clk 0:02:57]} 10. Nf3 {[%clk 0:02:14]}  cxd4 {[%clk 0:02:57]} 11. cxd4 {[%clk 0:02:13]}  fxe5 {[%clk 0:02:57]} 12. fxe5 {[%clk 0:02:13]}  Ncxe5 {[%clk 0:02:53]} 13. Bb1 {[%clk 0:01:41]}  Nxf3+ {[%clk 0:02:48]} 14. Rxf3 {[%clk 0:01:41]}  Nf6 {[%clk 0:02:48]} 15. Rh3 {[%clk 0:01:21]}  e5 {[%clk 0:02:47]} 16. Bg6+ {[%clk 0:01:18]}  Kd8 {[%clk 0:02:43]} 17. Rb3 {[%clk 0:01:07]}  Qe6 {[%clk 0:02:32]} 18. dxe5 {[%clk 0:00:53]}  hxg6 {[%clk 0:02:28]} 19. exf6 {[%clk 0:00:53]}  Bc5+ {[%clk 0:02:28]} 20. Kh1 {[%clk 0:00:48]}  gxf6 {[%clk 0:01:54]} 21. Nf4 {[%clk 0:00:19]}  Qd6 {[%clk 0:01:49]} 22. Rd3 {[%clk 0:00:15]}  d4 {[%clk 0:01:48]} 23. b4 {[%clk 0:00:15]}  Bb6 {[%clk 0:01:47]} 24. Bb2 {[%clk 0:00:15]}  Bf5 {[%clk 0:01:47]} 25. Rf3 {[%clk 0:00:10]}  g5 {[%clk 0:01:42]} 26. Nh3 {[%clk 0:00:05]}  Bg4 {[%clk 0:01:40]} 27. Rxf6 {[%clk 0:00:05]}  Qxf6 {[%clk 0:01:35]} 28. Qxg4 {[%clk 0:00:05]}  Rc8 {[%clk 0:01:34]} 29. Rd1 {[%clk 0:00:04]}  Rc4 {[%clk 0:01:34]} 30. Qe2 {[%clk 0:00:02]}  Qc6 {[%clk 0:01:29]} 31. Nxg5 {[%clk 0:00:02]}  Re8 {[%clk 0:01:21]} 32. Nf7+ {[%clk 0:00:02]}  Kc8 {[%clk 0:01:15]} 33. Ne5 {[%clk 0:00:03]}  Rc2 {[%clk 0:01:09]} 34. Qg4+ {[%clk 0:00:02]}  Qe6 {[%clk 0:01:08]} 35. Qe4 {[%clk 0:00:01]}  Rxb2 {[%clk 0:01:03]} 0-1

[Event "January 9 Early 2024"]
[Site "https://www.chess.com"]
[Date "2024.01.11"]
[Round "5"]
[White "Biriukov, Ilja"]
[Black "Buchenau, Frank"]
[Result "1-0"]
[Board "98"]
[TimeControl "180+1"]
[WhiteFideId "4113373"]
[BlackFideId "4604350"]
[WhiteElo "2260"]
[BlackElo "2397"]
[WhiteTeam "RUS"]
[BlackTeam "GER"]
[WhiteClock "0:00:28"]
[BlackClock "0:00:11"]

1. d4 {[%clk 0:03:00]}  e6 {[%clk 0:02:57]} 2. Nc3 {[%clk 0:02:59]}  Nf6 {[%clk 0:02:55]} 3. Bf4 {[%clk 0:02:58]}  d5 {[%clk 0:02:52]} 4. Qd2 {[%clk 0:02:57]}  Bb4 {[%clk 0:02:49]} 5. f3 {[%clk 0:02:56]}  O-O {[%clk 0:02:45]} 6. a3 {[%clk 0:02:55]}  Ba5 {[%clk 0:02:43]} 7. O-O-O {[%clk 0:02:53]}  Nbd7 {[%clk 0:02:34]} 8. g4 {[%clk 0:02:50]}  c5 {[%clk 0:02:28]} 9. e3 {[%clk 0:02:48]}  a6 {[%clk 0:02:14]} 10. dxc5 {[%clk 0:02:38]}  e5 {[%clk 0:02:03]} 11. Bg5 {[%clk 0:02:33]}  h6 {[%clk 0:01:51]} 12. Bxf6 {[%clk 0:02:20]}  Nxf6 {[%clk 0:01:40]} 13. b4 {[%clk 0:02:19]}  Bc7 {[%clk 0:01:34]} 14. Nxd5 {[%clk 0:02:17]}  Nxd5 {[%clk 0:01:32]} 15. Qxd5 {[%clk 0:02:18]}  Qg5 {[%clk 0:01:19]} 16. Qe4 {[%clk 0:01:27]}  f5 {[%clk 0:01:15]} 17. h4 {[%clk 0:01:21]}  Qe7 {[%clk 0:01:07]} 18. Bc4+ {[%clk 0:01:14]}  Kh8 {[%clk 0:01:07]} 19. gxf5 {[%clk 0:01:04]}  Bxf5 {[%clk 0:01:06]} 20. Qxb7 {[%clk 0:00:58]}  a5 {[%clk 0:00:39]} 21. e4 {[%clk 0:00:43]}  Bg6 {[%clk 0:00:31]} 22. Qc6 {[%clk 0:00:39]}  Kh7 {[%clk 0:00:17]} 23. Rd7 {[%clk 0:00:37]}  Be8 {[%clk 0:00:11]} 24. Rxe7 {[%clk 0:00:34]}  Bxc6 {[%clk 0:00:11]} 25. Rxc7 {[%clk 0:00:33]}  Ba4 {[%clk 0:00:11]} 26. b5 {[%clk 0:00:28]} 1-0